Cogmind - Beta 14 @@@ ROGUE MODE // 2024.08.11 @ 17:33:25 Player: tovernaar123 Result: Destroyed by L-31 Rogue with Katana Performance ------------- Evolutions (2) 1000 Regions Visited (7) 1400 Robots Destroyed (56) 280 Value Destroyed (2365) 2365 Prototype IDs (28) 560 Alien Tech Used (0) 0 Bonus (1844) 1844 TOTAL SCORE: 7449 Bonus ------- High Alert Combat Kills 457 Follower Combat Kills 533 Entered Garrisons 200 Used RIF Installer 500 Aligned with FarCom 300 Friendly Fire -146 Cogmind --------- Core Integrity 0/550 Matter 237/300 Energy 150/150 System Corruption 0% Temperature Cool (0) Movement Core (250) Ox4 Location -8/Materials Parts ------- > --- POWER (1) -------- Micro Nuclear Core > --- PROPULSION (2) --- (None) > --- UTILITY (5) ------ Small Storage Unit Improved Signal Interpreter Improved Power Shielding Relay Coupler [Grunt] (24) Relay Coupler [Hunter] (6) > --- WEAPON (3) ------- Datajack > --- INVENTORY (8) ---- Micro Nuclear Core Micro Nuclear Core Relay Coupler [Grunt] (24) Relay Coupler [Sentry] (23) Peak State ------------ > --- POWER ------------ Micro Nuclear Core > --- PROPULSION ------- Compact Wheel Compact Wheel > --- UTILITY ---------- Small Storage Unit Improved Signal Interpreter Light Armor Plating Hardened Medium Armor Plating Advanced Shield Generator > --- WEAPON ----------- Long-range Proton Cannon Ion Cannon High-powered Shotgun > --- INVENTORY -------- Micro Nuclear Core Micro Nuclear Core Improved Heat Sink Relay Coupler [Grunt] Relay Coupler [Grunt] Relay Coupler [Sentry] Missile Launcher Datajack [Rating: 34] Favorites ----------- Power Micro Nuclear Core Engine Light Ion Engine Power Core Micro Nuclear Core Propulsion Compact Wheel Wheel Compact Wheel Utility Small Storage Unit Device ECM Suite Storage Small Storage Unit Processor Improved Signal Interpreter Hackware Hacking Suite Protection Hardened Medium Armor Plating Weapon Ion Cannon Energy Gun EM Pulse Gun Energy Cannon Ion Cannon Ballistic Gun High-powered Shotgun Launcher Missile Launcher Special Melee Weapon Datajack Build | -11 -10 -10 -10 -9 -8 -8 -8 ------- Run | Yrd Mat Min Exi Min Mat Gar Mat Slots Evolved 4 | . . . . . 4 . . Power . | . . . . . . . . Propulsion . | . . . . . . . . Utility 3 | . . . . . 3 . . Weapon 1 | . . . . . 1 . . Parts Attached 95 | 6 4 1 1 2 46 26 9 Power 5 | 1 . . . . 4 . . Engine 4 | 1 . . . . 3 . . Core 1 | . . . . . 1 . . Reactor . | . . . . . . . . Propulsion 7 | 2 1 . . . 3 1 . Treads . | . . . . . . . . Leg . | . . . . . . . . Wheel 7 | 2 1 . . . 3 1 . Hover . | . . . . . . . . Flight . | . . . . . . . . Utility 21 | 1 1 1 1 . 7 6 4 Device 7 | . 1 1 1 . . 3 1 Storage 1 | 1 . . . . . . . Processor 1 | . . . . . 1 . . Hackware 3 | . . . . . 1 . 2 Protection 9 | . . . . . 5 3 1 Artifact . | . . . . . . . . Weapon 62 | 2 2 . . 2 32 19 5 Energy Gun 16 | 2 1 . . 1 11 1 . Energy Cannon 17 | . . . . . 9 7 1 Ballistic Gun 18 | . . . . . 11 5 2 Ballistic Cannon . | . . . . . . . . Launcher 4 | . . . . . . 4 . Special Weapon . | . . . . . . . . Impact Weapon . | . . . . . . . . Slashing Weapon . | . . . . . . . . Piercing Weapon . | . . . . . . . . Special Melee Weapon 7 | . 1 . . 1 1 2 2 Unidentified Prototypes 3 | . . 1 . . 2 . . Parts Lost 17 | . . . . . 1 7 9 Power . | . . . . . . . . Propulsion 3 | . . . . . . 1 2 Utility 6 | . . . . . . 4 2 Weapon 8 | . . . . . 1 2 5 Highest Loss Streak 4 | . . . . . 1 4 4 To Critical Strikes . | . . . . . . . . Average Slot Usage (%) 95 | . 96 100 100 100 96 94 78 Engine 5 | . 14 14 14 14 4 . . Core 4 | . . . . . 4 9 9 Wheel 19 | . 28 28 28 28 17 17 11 Device 7 | . 10 14 14 14 6 4 6 Storage 10 | . 14 14 14 14 9 9 9 Processor 4 | . . . . . 2 9 9 Hackware 4 | . . . . . 8 2 4 Protection 12 | . . . . . 17 16 7 Energy Gun 11 | . 27 28 28 26 8 4 . Energy Cannon 10 | . . . . . 15 12 11 Ballistic Gun 2 | . . . . . 1 3 8 Peak Build Rating 34 | 6 7 14 15 9 27 34 31 Average Rating 21 | 4 6 12 10 8 22 27 24 On Entrance 11 | . 6 7 14 9 8 27 23 Naked Turns . | . . . . . . . . Heaviest Build 48 | 12 14 26 26 14 43 48 35 Greatest Support 32 | 26 32 32 32 32 32 32 32 Greatest Overweight (x) 4 | 1 . . . . 1 2 4 Average Overweight (x) . | . . . . . . . . Largest Inventory Capacity 8 | 8 8 8 8 8 8 8 8 Average Capacity 7 | 7 8 8 8 8 8 8 8 Most Carried 8 | 5 7 7 8 8 8 8 8 Average Carried 7 | 1 5 6 7 7 7 7 6 Final Capacity 8 | 8 8 8 8 8 8 8 8 Final Carried 8 | 5 6 7 8 7 8 8 4 Class Distribution -------------------- 46% | Tank 40% | Mutant 3% | Bothacker-Skirmisher 3% | Scavenger-Tank Dominant Class ---------------- Mutant | -10/Materials Mutant | -10/Mines Mutant | -10/Exiles Mutant | -9/Mines Tank | -8/Materials Tank | -8/Garrison Bothacker-Skirmisher | -8/Materials Resources | -11 -10 -10 -10 -9 -8 -8 -8 ----------- Run | Yrd Mat Min Exi Min Mat Gar Mat Matter Collected 1450 | 260 40 10 . 30 549 521 40 Remotely . | . . . . . . . . Salvage Created 1991 | 53 185 . . . 766 683 304 Parts 110 | 4 15 . . . 49 30 12 Haulers Intercepted 4 | . 1 . . . 2 . 1 Recyclers Shooed . | . . . . . . . . Parts Field Recycled . | . . . . . . . . Retrieved Matter . | . . . . . . . . Parts Self-Destructed . | . . . . . . . . Prevented . | . . . . . . . . Kills | -11 -10 -10 -10 -9 -8 -8 -8 ------- Run | Yrd Mat Min Exi Min Mat Gar Mat Combat Hostiles Destroyed 36 | . 2 . . . 11 20 3 Guns 11 | . 2 . . . 5 3 1 Cannons 14 | . . . . . 5 7 2 AOE 9 | . . . . . 1 8 . Classes Destroyed 13 | 1 5 . . . 4 2 1 Worker 1 | . 1 . . . . . . Builder 1 | . . . . . 1 . . Hauler 4 | . 1 . . . 2 . 1 Recycler 2 | 1 . . . . 1 . . Mechanic 1 | . . . . . . . 1 Operator 3 | . 2 . . . 1 . . Watcher 7 | . 2 . . . 4 . 1 Swarmer 6 | . 2 . . . 4 . . Cutter 2 | . . . . . . 2 . Grunt 19 | . . . . . 2 13 4 Duelist 1 | . . . . . . 1 . Sentry 8 | . . . . . 4 4 . Heavy 1 | . . . . . 1 . . Best Kill Streak 5 | 1 4 . . . 5 4 2 Combat Bots Only 5 | . 2 . . . 5 4 1 Max Kills in Single Turn 2 | 1 2 . . . 1 2 2 Gunslinging 1 | . 1 . . . . . . Exploded 2 | . . . . . 1 2 . Melee . | . . . . . . . . Uniques/NPCs Destroyed . | . . . . . . . . Combat | -11 -10 -10 -10 -9 -8 -8 -8 -------- Run | Yrd Mat Min Exi Min Mat Gar Mat Hostile Shots Fired 241 | . 17 . . 1 44 115 64 Missed 84 | . 9 . . 1 17 44 13 Damage Taken 2606 | 30 62 . . . 483 1125 906 Core 605 | 15 17 . . . 52 109 412 Absorbed by Shields 127 | . . . . . . 127 . Redirected to Shielding 34 | . . . . . . . 34 Regen/Repaired (Parts) 154 | . . . . . 154 . . Core Remaining (%) 90 | 94 . . . 87 . . . Volleys Fired 152 | 1 20 2 . . 35 75 19 Largest 3 | 2 2 2 . . 3 3 3 Hottest 179 | 80 80 80 . . 179 177 164 Shots Fired 328 | 2 39 4 . . 91 151 41 Gun 148 | 2 39 4 . . 45 39 19 Cannon 161 | . . . . . 46 93 22 Launcher 19 | . . . . . . 19 . Special . | . . . . . . . . Kinetic 54 | . . . . . 24 11 19 Thermal 95 | . . . . . 29 55 11 Explosive 19 | . . . . . . 19 . Electromagnetic 160 | 2 39 4 . . 38 66 11 Robot Hit Streak 9 | 2 8 . . . 8 9 3 Robot Miss Streak 4 | . 4 . . . 3 3 4 Penetration Max . | . . . . . . . . Secondary Targets 2 | . 2 . . . . . . Max Gunslinging Chain 1 | . 1 . . . . . . Shots Hit Robots 153 | 2 23 . . . 50 55 23 Core Hits 93 | 2 8 . . . 28 39 16 Critical Kills . | . . . . . . . . Critical Parts Destroyed . | . . . . . . . . Critical Strikes 3 | . . . . . 1 1 1 Corrupt 3 | . . . . . 1 1 1 Melee Attacks 11 | . 1 . . . 1 7 2 Impact . | . . . . . . . . Slashing . | . . . . . . . . Piercing . | . . . . . . . . Sneak Attacks 8 | . . . . . 1 7 . Combat Hostiles . | . . . . . . . . Follow-up Attacks . | . . . . . . . . Damage Inflicted 4743 | 42 490 . . . 1275 2258 678 Guns 1263 | 13 341 . . . 509 246 154 Cannons 1701 | . . . . . 545 732 424 Explosions 1769 | 29 149 . . . 217 1280 94 Melee . | . . . . . . . . Ramming 10 | . . . . . 4 . 6 Kinetic 546 | . . . . . 341 51 154 Thermal 1072 | 29 53 . . . 468 351 171 Explosive 1282 | . 96 . . . . 1186 . Electromagnetic 1833 | 13 341 . . . 462 670 347 Impact . | . . . . . . . . Slashing . | . . . . . . . . Piercing . | . . . . . . . . Highest Corruption . | . . . . . . . . Average Corruption . | . . . . . . . . Corruption Purged . | . . . . . . . . Corruption Blocked . | . . . . . . . . Overload Shots . | . . . . . . . . Overflow Damage 77 | . . . . . 27 33 17 Projectiles 53 | . . . . . 27 9 17 Explosions 24 | . . . . . . 24 . Melee . | . . . . . . . . Knockbacks . | . . . . . . . . Impact . | . . . . . . . . Kinetic . | . . . . . . . . Secondary . | . . . . . . . . Self-Inflicted Damage 122 | 30 . . . . 69 . 23 Shots 3 | 1 . . . . 1 . 1 Rammed 2 | . . . . . 1 . 1 Targets Rammed 2 | . . . . . 1 . 1 Kicked . | . . . . . . . . Crushed . | . . . . . . . . Highest Temperature 445 | 15 86 18 . . 445 361 170 Average Temperature 90 | 14 33 12 . . 107 96 54 Received Heat Transfer 764 | . . . . . 108 449 207 Effects 11 | . . . . . 1 10 . Shutdowns 1 | . . . . . 1 . . Energy Bleed 1 | . . . . . . 1 . Interference 9 | . . . . . . 9 . Siege Activations . | . . . . . . . . Robots Corrupted 3 | . 1 . . . . 2 . Combat Hostiles 2 | . . . . . . 2 . Parts Fried 11 | . 4 . . . 2 4 1 Impact Corruptions . | . . . . . . . . Robots Melted . | . . . . . . . . Combat Hostiles . | . . . . . . . . Parts Melted 4 | . . . . . . 1 3 Heat Transferred 1460 | 50 50 . . . 594 507 259 Parts Sabotaged . | . . . . . . . . Parts Stolen . | . . . . . . . . Parts Stripped . | . . . . . . . . Power Chain Reactions 5 | 1 2 . . . . 1 1 Alert | -11 -10 -10 -10 -9 -8 -8 -8 ------- Run | Yrd Mat Min Exi Min Mat Gar Mat Peak Influence 1334 | 5 192 10 . 110 526 1334 964 Initial 650 | . 3 5 . . 42 319 650 Average 463 | 2 80 7 . 75 339 797 844 Maximum Alert Level 4 | . . . . . 2 4 3 Low Security (%) 25 | 100 100 100 . 100 17 . . Level 1 18 | . . . . . 37 4 . Level 2 31 | . . . . . 44 35 15 Level 3 18 | . . . . . . 40 84 Level 4 5 | . . . . . . 19 . Level 5 . | . . . . . . . . High Security . | . . . . . . . . Max Security . | . . . . . . . . Squads Dispatched 10 | . 1 . . . 4 . 5 Investigation 4 | . 1 . . . 2 . 1 Extermination . | . . . . . . . . Reinforcement 5 | . . . . . 2 . 3 Assault 1 | . . . . . . . 1 Garrison . | . . . . . . . . Intercept . | . . . . . . . . Searches Triggered . | . . . . . . . . Construction Impeded . | . . . . . . . . Haulers Reinforced . | . . . . . . . . Active Scanning Responses . | . . . . . . . . Cargo Convoy Interrupts . | . . . . . . . . Stealth | -11 -10 -10 -10 -9 -8 -8 -8 --------- Run | Yrd Mat Min Exi Min Mat Gar Mat Distress Signals 4 | . . . . . 2 . 2 Communications Jammed . | . . . . . . . . Distress Signals . | . . . . . . . . Times Spotted 87 | . 8 . . 3 27 22 27 Peak Tracking Total 9 | . 4 . . 4 3 6 9 Tactical Retreats 17 | . . . . 1 3 3 10 Traps | -11 -10 -10 -10 -9 -8 -8 -8 ------- Run | Yrd Mat Min Exi Min Mat Gar Mat Traps Triggered 8 | . . . . . 2 6 . Indirectly . | . . . . . . . . Trap Hack Attempts . | . . . . . . . . Triggered . | . . . . . . . . Disarmed . | . . . . . . . . Reprogrammed . | . . . . . . . . Reused . | . . . . . . . . Traps Extracted . | . . . . . . . . Installed . | . . . . . . . . Triggered 2 | . . 2 . . . . . Machines | -11 -10 -10 -10 -9 -8 -8 -8 ---------- Run | Yrd Mat Min Exi Min Mat Gar Mat Machines Disabled 14 | . 3 . . . 3 6 2 Max in Single Turn 3 | . 2 . . . 3 1 2 Garrison Relay 3 | . . . . . . 3 . Machines Repaired . | . . . . . . . . Machines Dismantled . | . . . . . . . . Machines Sabotaged . | . . . . . . . . Overloaded Fab Kills . | . . . . . . . . Hacking | -11 -10 -10 -10 -9 -8 -8 -8 --------- Run | Yrd Mat Min Exi Min Mat Gar Mat Machines Accessed 22 | . 7 1 1 . 12 1 . Terminals 15 | . 6 . . . 8 1 . Fabricators . | . . . . . . . . Repair Stations 1 | . . . . . 1 . . Recycling Units 3 | . 1 . . . 2 . . Scanalyzers . | . . . . . . . . Garrison Access 1 | . . . . . 1 . . Total Hacks 57 | . 18 1 1 . 35 2 . Successful 32 | . 9 1 1 . 21 . . Failed 25 | . 9 . . . 14 2 . Catastrophic 5 | . 2 . . . 2 1 . Database Lockouts . | . . . . . . . . Manual 37 | . 13 . 1 . 23 . . Terminals 43 | . 17 . . . 24 2 . Fabricators . | . . . . . . . . Repair Stations 8 | . . . . . 8 . . Recycling Units 3 | . 1 . . . 2 . . Scanalyzers . | . . . . . . . . Garrison Access 1 | . . . . . 1 . . Terminal Hacks 8 | . 3 1 1 . 3 . . Prototype ID Bank 1 | . 1 . . . . . . Open Door 1 | . . 1 . . . . . Level Access Points 1 | . . . . . 1 . . Alert Level 1 | . 1 . . . . . . Unreport Threat 1 | . 1 . . . . . . Surveillance Status 1 | . . . . . 1 . . Recall Investigation 1 | . . . . . 1 . . Derelict Proto ID Bank 1 | . . . 1 . . . . Fabricator Hacks . | . . . . . . . . Repair Station Hacks 8 | . . . . . 8 . . Scan Component 4 | . . . . . 4 . . Repair 4 | . . . . . 4 . . Recycling Unit Hacks 3 | . 1 . . . 2 . . Report Inventory 3 | . 1 . . . 2 . . Scanalyzer . | . . . . . . . . Garrison Access Hacks 1 | . . . . . 1 . . Unlock Access 1 | . . . . . 1 . . Unauthorized Hacks 12 | . 5 . . . 7 . . Terminals 12 | . 5 . . . 7 . . Botnet 12 | . 5 . . . 7 . . Fabricators . | . . . . . . . . Repair Stations . | . . . . . . . . Recycling Units . | . . . . . . . . Scanalyzers . | . . . . . . . . Garrison Access . | . . . . . . . . Data Cores Recovered 2 | . 1 . . . 1 . . Used 1 | . 1 . . . . . . Hacking Detections 14 | . 7 . . . 6 1 . Full Trace Events 2 | . 1 . . . . 1 . Feedback Events . | . . . . . . . . Feedback Blocked . | . . . . . . . . Robot Schematics Acquired . | . . . . . . . . Robots Built . | . . . . . . . . Authchips . | . . . . . . . . Time . | . . . . . . . . Total Robot Build Rating . | . . . . . . . . Part Schematics Acquired . | . . . . . . . . Parts Built . | . . . . . . . . Authchips . | . . . . . . . . Time . | . . . . . . . . Total Part Build Rating . | . . . . . . . . Parts Repaired 4 | . . . . . 4 . . Time 110 | . . . . . 110 . . Parts Recycled . | . . . . . . . . Recycled Matter . | . . . . . . . . Retrieved Matter . | . . . . . . . . Retrieved Components . | . . . . . . . . Parts Scanalyzed . | . . . . . . . . Part Schematics Acquired . | . . . . . . . . Parts Damaged . | . . . . . . . . Bothacking | -11 -10 -10 -10 -9 -8 -8 -8 ------------ Run | Yrd Mat Min Exi Min Mat Gar Mat Used RIF Installer 1 | . . . . . . 1 . Robots Hacked 3 | . 1 . . . 1 . 1 Non-combat 2 | . 1 . . . 1 . . Combat 1 | . . . . . . . 1 Robot Hacks Applied 3 | . 1 . . . 1 . 1 no_distress 2 | . 1 . . . 1 . . streamctrl_high 1 | . . . . . . . 1 Relay Couplers Released 15 | . . . . . . 15 . Machine Destruction 15 | . . . . . . 15 . Attached 2 | . . . . . . . 2 Fabnet Peak Effective % . | . . . . . . . . Robots Rewired 3 | . . . . . . 3 . Allies Hacked . | . . . . . . . . Hacks Repelled . | . . . . . . . . Allies | -11 -10 -10 -10 -9 -8 -8 -8 -------- Run | Yrd Mat Min Exi Min Mat Gar Mat Total Allies 7 | . . . . 3 . 3 1 Largest Group 3 | . . . . 3 . 3 3 Highest-Rated Group 48 | . . . . 40 . 48 48 Highest-Rated Ally 21 | . . . . 16 . 16 21 Total Orders 19 | . . 19 . . . . . FOLLOW 1 | . . 1 . . . . . EXPLORE 18 | . . 18 . . . . . Ally Attacks 108 | . . . . 14 53 . 41 Total Damage 3164 | . . . . 137 2573 . 454 Kills 30 | . . . . 4 22 . 4 Allies Corrupted . | . . . . . . . . Allies Melted . | . . . . . . . . Turrets Deployed 3 | . . . . 1 2 . . Intel | -11 -10 -10 -10 -9 -8 -8 -8 ------- Run | Yrd Mat Min Exi Min Mat Gar Mat Robot Analysis Total . | . . . . . . . . Derelict Logs Recovered . | . . . . . . . . Drone Launches 20 | . . 20 . . . . . Drone Recoveries 15 | . . 15 . . . . . Exploration | -11 -10 -10 -10 -9 -8 -8 -8 ------------- Run | Yrd Mat Min Exi Min Mat Gar Mat Turns Passed 6629 | 71 515 379 466 94 2809 1852 443 Spaces Moved 4779 | 64 458 315 461 70 1912 1207 292 Core 12 | 10 . . . . . . 2 Treads . | . . . . . . . . Legs . | . . . . . . . . Wheels 4767 | 54 458 315 461 70 1912 1207 290 Hover . | . . . . . . . . Flight . | . . . . . . . . Fastest Speed 50 | 50 90 100 100 100 100 100 100 Average Speed 108 | 84 97 100 100 100 112 113 113 Slowest Speed 250 | 100 100 100 100 100 115 130 250 Overloaded Moves . | . . . . . . . . Propulsion Burnouts . | . . . . . . . . Robots Hopped 4 | . . . . 1 3 . . Cave-ins Triggered . | . . . . . . . . Exploration Rate (%) 50 | 5 61 97 63 19 74 60 25 Regions Visited 7 Branch Regions 3 Pre-discovered Areas . | . . . . . . . . Known Exits Taken 2 | . . 1 . . 1 . . Unknown Exits Taken 4 | 1 1 . 1 1 . . . Scrap Searched 1 | . . 1 . . . . . Spaces Dug 62 | . . . . . 1 61 . Terrain Destroyed 252 | 5 21 . . . 31 188 7 Melee . | . . . . . . . . Projectile 8 | . . . . . 3 1 4 AOE 244 | 5 21 . . . 28 187 3 Terrain Rammed . | . . . . . . . . Walls Destroyed . | . . . . . . . . Machines Disabled . | . . . . . . . . Actions | -11 -10 -10 -10 -9 -8 -8 -8 --------- Run | Yrd Mat Min Exi Min Mat Gar Mat Total 5901 | 76 486 374 466 93 2490 1550 366 Wait 748 | . . 56 . 20 455 175 42 Move 4765 | 63 457 314 460 67 1906 1206 292 Hop 4 | . . . . 1 3 . . Pick Up 50 | 6 2 1 3 1 24 12 1 Fast Attach 18 | 5 1 . . . 5 5 2 Attach 28 | 1 2 . 1 1 12 6 5 Detach 1 | . 1 . . . . . . Swap 50 | . 1 1 . 1 29 16 2 Drop 32 | . 1 . 2 2 19 8 . Fire 152 | 1 20 2 . . 35 75 19 Melee 11 | . 1 . . . 1 7 2 Ram 2 | . . . . . 1 . 1 Kick . | . . . . . . . . Crush . | . . . . . . . . Escape Stasis 40 | . . . . . . 40 . Rewire . | . . . . . . . . Trap . | . . . . . . . . Miscellaneous . | . . . . . . . . Route ------- -11/Scrapyard -10/Materials (discovered 3 exits: *Mat x2 / *Min) -10/Mines (discovered 3 exits: *Mat x2 / *Exi) -10/Exiles (discovered 2 exits: [*Min x2]) -9/Mines -8/Materials (discovered 4 exits: *Fac x3 / Gar) -8/Garrison (discovered 2 exits: *Mat x2) -8/Materials History --------- Turn | Location | Event 3 | -11/Scrapyard | Discovered new exit (range 15) 72 | -11/Scrapyard | Entered Materials 225 | -10/Materials | Discovered new exit (range 15) 300 | -10/Materials | Build established: Mutant 337 | -10/Materials | Discovered new exit (range 8) 390 | -10/Materials | Discovered new exit (range 16) 587 | -10/Materials | Entered Mines 597 | -10/Mines | Assembled infested the area 612 | -10/Mines | Discovered new exit (range 5) 644 | -10/Mines | Met 8R-AWN 666 | -10/Mines | Found the Drone Emporium 672 | -10/Mines | Found Prototype Device 673 | -10/Mines | Identified Sensor Drone Bay 715 | -10/Mines | Discovered new exit (range 73) 804 | -10/Mines | Discovered new exit (range 11) 887 | -10/Mines | Identified exit to Materials 960 | -10/Mines | Identified exit to Exiles 966 | -10/Mines | Entered Exiles 966 | -10/Exiles | Accompanied by 3 allies 983 | -10/Exiles | Discovered new exit (range 18) 1003 | -10/Exiles | Welcomed by 8R-AWN 1017 | -10/Exiles | Met EX-HEX 1056 | -10/Exiles | Met EX-BIN 1067 | -10/Exiles | Aligned with FarCom system 1068 | -10/Exiles | Given EX-Vault access code 1091 | -10/Exiles | Opened EX-Vault 1100 | -10/Exiles | Found Deploy-a-Sentry 1104 | -10/Exiles | Found Deploy-a-Sentry 1107 | -10/Exiles | Found Deploy-a-Sentry 1130 | -10/Exiles | Warned to stay clear of 0b10 Research branches 1156 | -10/Exiles | Met EX-DEC 1225 | -10/Exiles | Discovered new exit (range 14) 1432 | -10/Exiles | Left Exiles lab with Deploy-a-Sentry 1432 | -10/Exiles | Entered Mines 1434 | -9/Mines | Met a Derelict bent on vengeance 1436 | -9/Mines | Assisted by bots powering up and referring to "LRC-V3" 1444 | -9/Mines | DAS Turret deployed 1510 | -9/Mines | Discovered new exit (range 16) 1526 | -9/Mines | Entered Materials 1526 | -8/Materials | Evolved 4 slots: Utility x3, Weapon x1 1563 | -8/Materials | DAS Turret deployed 1965 | -8/Materials | Build established: Tank 2207 | -8/Materials | DAS Turret deployed 2433 | -8/Materials | Build established: Mutant 2932 | -8/Materials | Build established: Tank 3027 | -8/Materials | Discovered new exit (range 16) 3316 | -8/Materials | Identified exit to Factory 3876 | -8/Materials | Repaired Com. Wheel 3911 | -8/Materials | Repaired Med. Armor Plating 3938 | -8/Materials | Repaired Com. Wheel 3965 | -8/Materials | Repaired Com. Wheel 4335 | -8/Materials | Identified exit to Garrison 4335 | -8/Materials | Entered Garrison 4399 | -8/Garrison | Triggered checkpoint 4464 | -8/Garrison | Garrison Relay disabled 4773 | -8/Garrison | Triggered checkpoint 5063 | -8/Garrison | Triggered checkpoint 5108 | -8/Garrison | Garrison Relay disabled 5235 | -8/Garrison | Discovered new exit (range 14) 5249 | -8/Garrison | Identified exit to Materials 5324 | -8/Garrison | Spotted B-75 Beast 5715 | -8/Garrison | Discovered exit to Materials (range 10) 5768 | -8/Garrison | Triggered checkpoint 5984 | -8/Garrison | Lost 4 parts (3u1w) 6045 | -8/Garrison | Garrison Relay disabled 6123 | -8/Garrison | Installed Relay Interface Framework 6187 | -8/Garrison | Entered Materials 6187 | -8/Materials | Accompanied by 3 allies 6481 | -8/Materials | Core integrity fell below 50% 6520 | -8/Materials | Lost 4 parts (1u3w) 6536 | -8/Materials | Core integrity fell below 20% 6587 | -8/Materials | First assault squad dispatched 6630 | -8/Materials | Destroyed by L-31 Rogue with Katana Last Messages --------------- assault force dispatched. 06589_ O-16 Technician: "IFF HANDSHAKE FAILED. SECURING TERMINAL." 06591_ ALERT: Hostiles spotted, dispatching reinforcements to Terminal M001. 06617_ Penetrated by Slug. 06620_ C-30 ARC bursts open, deploying its payload. 06620_ G-50 Soldier unfolds itself. 06620_ B-36 Bruiser unfolds itself. 06620_ G-47 Trooper unfolds itself. 06620_ I-25 Savior unfolds itself. 06620_ Penetrated by Slug. 06620_ Com. Wheel destroyed. 06620_ Hpw. Shotgun destroyed. 06626_ Jacked H-55 Commando... 06626_ Penetrated by Slug. 06629_ Jacked H-55 Commando... >>streamctrl_high Hijacking control node. Map ----- +----------------------------------------------------+ | ?????????????# #?# !%# ???? | | ?????????????# #?# !/ T ???? | | ?????????????# #?# # ???? | | ??????????####%### # ## ???? | | ??????????# " #######? ????? | | ??????????# ###### #???????? ????? | | ??????????# #??###### ####????????? ????? | | ??????????# #??# #?????????? ?????? | | ??????????# #??# """ #??????????? ?????? | | ??????????# #??# """"" ]#?????????? ??????? | | ??????????# #??# """"" #????????? ??????? | | #########?# #??# """"" #???????? ????????? | | #?# #??# """ #???????? """????????? | | """ #?# #??# #??????? """ "?????? | | """ #?# #??######+############# """ ""????? | | """ ### ######## ???? | | + ???? | | """ ############ """ ""????? | | """ #??????????######### """ ?"?????? | | """ #??????????????????# """ ""????? | | #?????#######??????# ???? | | ####+########## ######## ???? | | # ???? | | # u ???? | | # % m h ""????? | | ####+########## #####@####+########## "T????? | | ??? ???????####+#######l# #?????? "?????? | | ??? ??????# ##g# """"" #?????????????? | | ??? ?????# ##g# """"" #?????????????? | | ??? ?????# i ##g#g""""" #?????????????? | | ??? * #????# +b # #?????????????? | | ??? #????# ##a#g""""" #?????????????? | | ??? #????# ## # """"" #?????????????? | | ??? #????# ## # " """ #?????????????? | | ???######????# ## # #?????????????? | | ?????????????############%###+######?????????????? | | ??????????? #??????????????????? | | ???????????T #####+####??????????????????? | | ???????????????????????? ?????????????????????? | | ???????????????????????# ?????????????????????? | | ???????????????????????? ????????????????????? | | ???????????????????????? ????????????????????? | | ???????????????????????# """ ???????????????????? | | ???????????????????????# """""???????????????????? | | ???????????????????????# """"" ??????????????????? | | ???????????????????????# """"" ??????????????????? | | ???????????????????????# ???? +?????????????????? | | ???????????????????????# ??????#?????????????????? | | ???????????????????????#=????????????????????????? | | ?????????????????????????????????????????????????? | +----------------------------------------------------+ Best States ------------- Heat Dissipation 45 Energy Generation 15 Energy Capacity 150 Matter Stores 300 Matter Capacity 300 Sight Range 16 Terrain Scan Density 10 ECM Strength 1 Armor Coverage 600 Power Shielding 66 Evasion (%) 42 Particle Charging 15 Offensive Hacking 10 Relay Coupler Types 2 Relay Coupler Value 30 Item Schematics ----------------- None Robot Schematics ------------------ None Fabricated ------------ Nothing Alien Tech Used ----------------- None Achievements -------------- Novice Programmer Release The Drones! Challenges ------------ None Game ------ Seed SensorLinkedMinigun Manual? 0 Play Time 01:14:31 Cumulative 24.5 hours Start 2024.08.11 @ 16:17:55 End 2024.08.11 @ 17:33:25 Sessions 1 Manual Loads 0 Difficulty Rogue Special Mode None Game No. 5 Rogue 1 Adventurer 0 Explorer 4 Win Type - Total 1 Types 1/0/0/0/0/0/0/0/0 Lore% 7 Gallery% 23 Achievement% 26 Wizard Run 0 Options --------- Layout 1 ASCII 0 Keyboard 0 Movement Mouse Keybinds 0 Fullscreen 1 Font 36/Smallcaps Map View 50x40 Zoom Use 0% Tactical HUD 1 Map Filters NONE Filters NONE Steam 1 RUN: 31cfa17a-26c8-4b19-a9e5-54282e10a74d